bitfinex/quotes_BTCUSD_20241004
["timestamp","ask_amount","ask_price","bid_price","bid_amount"]
[1728007633415,0.004,61301.0,61300.0,0.35559199]
[1728007633908,0.003,61301.0,61300.0,0.35559199]
[1728007634122,0.02557838,61302.0,61301.0,0.165129]
[1728007634560,0.24468224,61312.0,61310.0,0.002]
[1728007634805,0.24468224,61312.0,61307.0,0.002]
[1728007635028,0.16311,61308.0,61307.0,0.002]
[1728007635712,0.3262,61312.0,61307.0,0.002]
[1728007635919,0.163104,61311.0,61307.0,0.002]
[1728007636173,0.163104,61311.0,61309.0,0.002]
[1728007636841,0.008,61312.0,61311.0,0.002]
[1728007637049,0.008,61312.0,61311.0,0.35556199]
[1728007637266,0.001638,61320.0,61316.0,0.163088]
[1728007637502,0.001638,61320.0,61317.0,0.19045999]
[1728007637720,0.02721043,61320.0,61319.0,0.163081]
[1728007637927,0.02721043,61320.0,61318.0,0.163083]
[1728007638373,0.03721043,61320.0,61317.0,0.19045999]
[1728007638589,0.03721043,61320.0,61319.0,0.163081]
[1728007638590,0.011638,61320.0,61319.0,0.163081]
[1728007639059,0.011638,61320.0,61317.0,0.35354399]
[1728007639321,0.011638,61320.0,61319.0,0.163081]
[1728007639740,0.010638,61320.0,61319.0,0.163081]
[1728007639943,0.003638,61320.0,61319.0,0.163081]
[1728007640194,0.004638,61320.0,61319.0,0.163081]
[1728007640414,0.002638,61320.0,61319.0,0.163081]
[1728007640637,0.002638,61320.0,61310.0,0.326209]
[1728007640638,0.001638,61320.0,61310.0,0.326209]
[1728007640860,0.163084,61318.0,61313.0,0.163096]
[1728007641074,0.163084,61318.0,61310.0,0.326209]
[1728007641075,0.163084,61318.0,61311.0,0.24468224]
[1728007641295,0.163084,61318.0,61310.0,0.326209]
[1728007641506,0.163094,61314.0,61313.0,0.002]
[1728007641734,0.326166,61319.0,61312.0,0.002]
[1728007641988,0.02557362,61318.0,61316.0,0.43514223]
[1728007642208,0.02557362,61318.0,61317.0,0.163086]
[1728007642429,0.001638,61320.0,61319.0,0.163081]
[1728007642881,0.004638,61320.0,61319.0,0.163081]
[1728007643330,0.001638,61320.0,61319.0,0.40924305]
[1728007643543,0.001638,61320.0,61319.0,0.166081]
[1728007643746,0.001638,61320.0,61319.0,0.45346447]
[1728007644011,0.001638,61320.0,61319.0,0.45046447]
[1728007644475,0.001638,61320.0,61319.0,0.45346447]
[1728007644721,0.001638,61320.0,61319.0,0.45846447]
[1728007646220,0.001638,61320.0,61319.0,0.45346447]
[1728007646439,0.002638,61320.0,61319.0,0.46346447]
[1728007646691,0.003638,61320.0,61319.0,0.47446447]
[1728007647559,0.001638,61325.0,61324.0,0.244668]
[1728007647796,0.001638,61325.0,61324.0,0.533312]
[1728007648000,0.001638,61325.0,61324.0,0.53005147]
[1728007648443,0.001638,61325.0,61324.0,0.165068]
[1728007649752,0.001638,61325.0,61324.0,0.175068]
[1728007650192,0.001638,61325.0,61324.0,0.187068]
[1728007650413,0.001638,61325.0,61324.0,0.165068]
[1728007650630,0.001638,61325.0,61324.0,0.002]
[1728007650856,0.001638,61325.0,61324.0,0.009]
[1728007651114,0.001638,61325.0,61324.0,0.007]
[1728007651540,0.164703,61325.0,61324.0,0.007]
[1728007652005,0.164703,61325.0,61324.0,0.009]
[1728007652435,0.164703,61325.0,61324.0,0.004]
[1728007652627,0.001638,61325.0,61324.0,0.002]
[1728007652841,0.001638,61325.0,61324.0,0.004]
[1728007653103,0.001638,61325.0,61324.0,0.005]
[1728007653330,0.001638,61325.0,61324.0,0.45145147]
[1728007653547,0.002638,61325.0,61324.0,0.45145147]
[1728007653809,0.002638,61325.0,61324.0,0.45045147]
[1728007654221,0.001638,61325.0,61324.0,0.45045147]
[1728007654645,0.001638,61325.0,61324.0,0.45245147]
[1728007655363,0.001638,61340.0,61332.0,0.002]
[1728007655626,0.001638,61340.0,61337.0,0.163033]
[1728007655823,0.001638,61340.0,61337.0,0.24118671]
[1728007656037,0.001638,61340.0,61339.0,0.163028]
[1728007656253,0.001638,61340.0,61339.0,0.32947447]
[1728007656490,0.00164,61353.0,61352.0,0.162993]
[1728007657793,0.00164,61353.0,61352.0,0.164993]
[1728007659300,0.00164,61353.0,61352.0,0.174993]
[1728007659786,0.00164,61353.0,61352.0,0.168993]
[1728007659999,0.00164,61353.0,61352.0,0.170993]
[1728007660218,0.00164,61353.0,61352.0,0.174993]
[1728007662179,0.00164,61353.0,61352.0,0.012]
[1728007662394,0.00164,61353.0,61352.0,0.164993]
[1728007662643,0.00264,61353.0,61352.0,0.164993]
[1728007663061,0.00164,61353.0,61352.0,0.164993]
[1728007663306,0.00264,61353.0,61352.0,0.164993]
[1728007663500,0.00364,61353.0,61352.0,0.164993]
[1728007663927,0.00464,61353.0,61352.0,0.164993]
[1728007664916,0.00264,61353.0,61352.0,0.164993]
[1728007665117,0.00464,61353.0,61352.0,0.164993]
[1728007665530,0.00164,61353.0,61352.0,0.164993]
[1728007665998,0.00264,61353.0,61352.0,0.164993]
[1728007666338,0.00164,61353.0,61352.0,0.164993]
[1728007666960,0.24468224,61376.0,61352.0,0.081]
[1728007667193,0.24468224,61376.0,61375.0,0.28538347]
[1728007667575,0.325834,61381.0,61377.0,0.002]
[1728007667789,0.162924,61379.0,61377.0,0.002]
[1728007668006,0.162924,61378.0,61377.0,0.002]
[1728007668214,0.325845,61379.0,61373.0,0.002]
[1728007668446,0.0766,61380.0,61373.0,0.002]
[1728007668654,0.16293,61376.0,61374.0,0.24668224]
[1728007669114,0.16293,61376.0,61374.0,0.002]
[1728007669359,0.096138,61382.0,61375.0,0.24468224]
[1728007669568,0.001638,61382.0,61381.0,0.44829947]
[1728007670183,0.001638,61382.0,61381.0,0.45029947]
[1728007671828,0.001638,61382.0,61381.0,0.45129947]
[1728007672032,0.001638,61382.0,61381.0,0.45229947]
[1728007672479,0.001638,61382.0,61381.0,0.46129947]
[1728007672690,0.001638,61382.0,61381.0,0.006]
[1728007673218,0.001638,61382.0,61381.0,0.011]
[1728007673426,0.001638,61382.0,61381.0,0.007]
[1728007674506,0.164552,61382.0,61381.0,0.007]
[1728007674733,0.164552,61382.0,61381.0,0.005]
[1728007674954,0.162923,61379.0,61377.0,0.002]
[1728007675158,0.001638,61382.0,61377.0,0.002]
[1728007675375,0.162924,61378.0,61377.0,0.002]
[1728007675575,0.162924,61378.0,61367.0,0.325905]
[1728007675576,0.162932,61375.0,61374.0,0.002]
[1728007675789,0.162932,61375.0,61373.0,0.002]
[1728007675790,0.162935,61374.0,61373.0,0.002]
[1728007676021,0.325839,61380.0,61372.0,0.002]
[1728007676022,0.162938,61373.0,61372.0,0.002]
[1728007676450,0.29102147,61382.0,61368.0,0.002]
[1728007676668,0.325868,61375.0,61368.0,0.002]
[1728007676872,0.162948,61369.0,61368.0,0.002]
[1728007677307,0.32585,61378.0,61352.0,0.325983]
[1728007677308,0.1,61377.0,61362.0,0.002]
[1728007677508,0.1148,61378.0,61367.0,0.002]
[1728007677509,0.162933,61375.0,61367.0,0.002]
[1728007677710,0.1918,61378.0,61369.0,0.002]
[1728007677958,0.162946,61370.0,61369.0,0.002]
[1728007678168,0.162938,61373.0,61372.0,0.002]
[1728007678612,0.16294,61372.0,61371.0,0.002]
[1728007679580,0.16294,61372.0,61366.0,0.24468224]
[1728007679581,0.162943,61371.0,61370.0,0.002]
[1728007680856,0.002,61372.0,61369.0,0.002]
[1728007681064,0.162946,61370.0,61369.0,0.002]
[1728007682647,0.35243632,61371.0,61367.0,0.002]
[1728007682648,0.162951,61368.0,61367.0,0.002]
[1728007682858,0.162951,61368.0,61355.0,0.61298547]
[1728007682859,0.162969,61361.0,61360.0,0.24668224]
[1728007683071,0.162969,61361.0,61360.0,0.24468224]
[1728007683278,0.162969,61361.0,61360.0,0.24668224]
[1728007683490,0.162969,61361.0,61360.0,0.002]
[1728007683729,0.325922,61365.0,61355.0,0.16462]
[1728007683730,0.32593,61363.0,61361.0,0.002]
[1728007683951,0.162967,61362.0,61361.0,0.002]
[1728007685241,0.164967,61362.0,61361.0,0.002]
[1728007685601,0.003,61362.0,61361.0,0.002]
[1728007685820,0.165967,61362.0,61361.0,0.002]
[1728007686024,0.162969,61361.0,61360.0,0.002]
[1728007686237,0.003,61362.0,61356.0,0.002]
[1728007686450,0.162977,61359.0,61356.0,0.002]
[1728007686658,0.16298,61357.0,61356.0,0.002]
[1728007686874,0.162983,61356.0,61355.0,0.001636]
[1728007688233,0.347183,61356.0,61355.0,0.001636]
[1728007688680,0.342183,61356.0,61355.0,0.001636]
[1728007688910,0.350183,61356.0,61355.0,0.001636]
[1728007689819,0.355183,61356.0,61355.0,0.002636]
[1728007690029,0.347183,61356.0,61355.0,0.002636]
[1728007690266,0.167983,61356.0,61355.0,0.002636]
[1728007690479,0.013,61356.0,61355.0,0.168621]
[1728007690925,0.013,61356.0,61355.0,0.167621]
[1728007690926,0.005,61356.0,61355.0,0.167621]
[1728007691152,0.02555507,61358.0,61355.0,0.003636]
[1728007691421,0.162983,61356.0,61355.0,0.001636]
[1728007691666,0.174983,61356.0,61355.0,0.002636]
[1728007691880,0.170983,61356.0,61355.0,0.001636]
[1728007692100,0.174983,61356.0,61355.0,0.001636]
[1728007692315,0.170983,61356.0,61355.0,0.001636]
[1728007692746,0.175983,61356.0,61355.0,0.001636]
[1728007692953,0.170983,61356.0,61355.0,0.001636]
[1728007693154,0.162983,61356.0,61355.0,0.001636]
[1728007693372,0.242183,61356.0,61355.0,0.002636]
[1728007693593,0.265183,61356.0,61355.0,0.002636]
[1728007693805,0.265183,61356.0,61355.0,0.001636]
[1728007694020,0.242183,61356.0,61355.0,0.001636]
[1728007694241,0.009,61356.0,61355.0,0.001636]
[1728007694460,0.19754071,61356.0,61355.0,0.001636]
[1728007694684,0.18854071,61356.0,61355.0,0.001636]
[1728007694902,0.19354071,61356.0,61355.0,0.001636]
[1728007695579,0.19354071,61356.0,61355.0,0.003636]
[1728007695580,0.19754071,61356.0,61355.0,0.003636]
[1728007695792,0.19354071,61356.0,61355.0,0.003636]
[1728007696006,0.19854071,61356.0,61355.0,0.003636]
[1728007696224,0.03055771,61356.0,61355.0,0.003636]
[1728007696451,0.03555771,61356.0,61355.0,0.167621]
[1728007696873,0.01,61356.0,61355.0,0.167621]
[1728007697096,0.005,61356.0,61355.0,0.166621]
[1728007697307,0.005,61356.0,61355.0,0.167621]
[1728007697815,0.167983,61356.0,61355.0,0.001636]
[1728007698059,0.250183,61356.0,61355.0,0.001636]
[1728007698267,0.254183,61356.0,61355.0,0.001636]
[1728007698479,0.245183,61356.0,61355.0,0.001636]
[1728007698912,0.342583,61356.0,61355.0,0.001636]
[1728007699160,0.464583,61356.0,61355.0,0.001636]
[1728007699829,0.461583,61356.0,61355.0,0.001636]
[1728007700056,0.465583,61356.0,61355.0,0.001636]
[1728007700503,0.468583,61356.0,61355.0,0.001636]
[1728007700718,0.461583,61356.0,61355.0,0.001636]
[1728007700981,0.475583,61356.0,61355.0,0.003636]
[1728007701197,0.483583,61356.0,61355.0,0.003636]
[1728007702578,0.61653326,61356.0,61355.0,0.003636]
[1728007703247,0.62066362,61356.0,61355.0,0.003636]
[1728007703869,0.64622561,61356.0,61355.0,0.003636]
[1728007704323,0.49127535,61356.0,61355.0,0.001636]
[1728007704560,0.49927535,61356.0,61355.0,0.002636]
[1728007704827,0.49927535,61356.0,61341.0,0.24468224]
[1728007704828,0.33629235,61356.0,61341.0,0.24468224]
[1728007705035,0.74700347,61342.0,61341.0,0.24468224]
[1728007705487,0.263039,61335.0,61334.0,0.24468224]
[1728007705708,0.57142247,61335.0,61334.0,0.24468224]
[1728007706154,0.123,61334.0,61326.0,0.24468224]
[1728007706375,0.123,61335.0,61326.0,0.24668224]
[1728007706376,0.16306,61327.0,61326.0,0.24668224]
[1728007706592,0.163036,61336.0,61335.0,0.002]
[1728007706852,0.163044,61333.0,61332.0,0.002]
[1728007709941,0.163054,61329.0,61328.0,0.002]
[1728007710175,0.326088,61333.0,61326.0,0.002]
[1728007710398,0.326088,61333.0,61325.0,0.002]
[1728007710399,0.163062,61327.0,61325.0,0.002]
[1728007710647,0.163055,61329.0,61325.0,0.002]
[1728007710894,0.326104,61331.0,61327.0,0.002]
[1728007711105,0.163057,61328.0,61327.0,0.00171335]
[1728007711320,0.0255678,61332.0,61323.0,0.00171335]
[1728007711553,0.163073,61322.0,61321.0,0.00171335]
[1728007711798,0.326127,61326.0,61322.0,0.00171335]
[1728007712034,0.326132,61325.0,61321.0,0.00171335]
[1728007712271,0.326142,61323.0,61321.0,0.00171335]
[1728007712501,0.489212,61323.0,61322.0,0.00171335]
[1728007712763,0.16307,61323.0,61322.0,0.00171335]
[1728007713716,0.16407,61323.0,61322.0,0.00171335]
[1728007715000,0.163073,61322.0,61321.0,0.00171335]
[1728007715240,0.164072,61323.0,61321.0,0.00171335]
[1728007715437,0.163073,61322.0,61321.0,0.00171335]
[1728007715670,0.001,61323.0,61321.0,0.00171335]
[1728007715873,0.164073,61323.0,61322.0,0.00171335]
[1728007716351,0.163073,61323.0,61322.0,0.00171335]
[1728007718171,0.164073,61323.0,61322.0,0.00171335]
[1728007719044,0.164073,61323.0,61316.0,0.326175]
[1728007719045,0.326148,61322.0,61316.0,0.00171335]
[1728007719271,0.326148,61322.0,61318.0,0.00171335]
[1728007719507,0.163081,61319.0,61318.0,0.00171335]
[1728007719959,0.163086,61317.0,61316.0,0.00171335]
[1728007720189,0.326128,61326.0,61307.0,0.326224]
[1728007720190,0.326148,61322.0,61314.0,0.00171335]
[1728007720457,0.163085,61318.0,61317.0,0.00171335]
[1728007720673,0.163085,61318.0,61310.0,0.326207]
[1728007720674,0.326167,61319.0,61315.0,0.00171335]
[1728007720928,0.163089,61316.0,61315.0,0.00171335]
[1728007721163,0.16308,61320.0,61315.0,0.16480335]
[1728007721397,0.001,61317.0,61315.0,0.00171335]
[1728007721627,0.001,61317.0,61315.0,0.16480435]
[1728007721865,0.001,61317.0,61315.0,0.00171335]
[1728007722149,0.163092,61315.0,61314.0,0.00171335]
[1728007722599,0.326179,61316.0,61313.0,0.00171335]
[1728007722824,0.163094,61314.0,61309.0,0.163924]
[1728007723057,0.163094,61314.0,61311.0,0.00171335]
[1728007723310,0.14571758,61362.0,61311.0,0.00171335]
[1728007723311,0.023,61331.0,61318.0,0.0814]
[1728007723543,0.24468224,61322.0,61321.0,0.00171335]
[1728007723770,0.24468224,61322.0,61319.0,0.163079]
[1728007723771,0.163068,61324.0,61322.0,0.00171335]
[1728007724001,0.163068,61324.0,61319.0,0.163079]
[1728007724002,0.163068,61324.0,61323.0,0.00171335]
[1728007725407,0.163066,61325.0,61324.0,0.00171335]
[1728007725866,0.16305,61331.0,61327.0,0.16306]
[1728007726084,0.24468224,61334.0,61325.0,0.00171335]
[1728007726301,0.163062,61327.0,61326.0,0.00171335]
[1728007726520,0.163062,61327.0,61325.0,0.00171335]
[1728007726746,0.163061,61327.0,61325.0,0.00171335]
[1728007727158,0.18862982,61327.0,61325.0,0.00171335]
[1728007727368,0.163061,61327.0,61325.0,0.00171335]
[1728007727585,0.326093,61333.0,61325.0,0.00171335]
[1728007727797,0.163062,61326.0,61325.0,0.00171335]
[1728007728025,0.006,61327.0,61322.0,0.00171335]
[1728007728026,0.16307,61323.0,61322.0,0.00171335]
[1728007728699,0.16307,61323.0,61315.0,0.326182]
[1728007728700,0.326126,61326.0,61324.0,0.00171335]
[1728007728928,0.163066,61325.0,61324.0,0.00171335]
[1728007730498,0.165066,61325.0,61322.0,0.00171335]
[1728007730957,0.165066,61325.0,61324.0,0.00171335]
[1728007731952,0.166066,61325.0,61324.0,0.00171335]
[1728007732185,0.166066,61325.0,61319.0,0.00171335]
[1728007732186,0.163073,61323.0,61319.0,0.00171335]
[1728007732457,0.163073,61323.0,61322.0,0.001638]
[1728007733122,0.186073,61323.0,61322.0,0.001638]
[1728007733798,0.21164499,61323.0,61322.0,0.001638]
[1728007734031,0.21264499,61323.0,61322.0,0.001638]
[1728007734263,0.21464499,61323.0,61322.0,0.001638]
[1728007734869,0.21264499,61323.0,61322.0,0.001638]
[1728007735394,0.22264499,61323.0,61322.0,0.001638]
[1728007735594,0.22164499,61323.0,61322.0,0.001638]
[1728007735840,0.21164499,61323.0,61322.0,0.001638]
[1728007736041,0.22164499,61323.0,61322.0,0.001638]
[1728007737562,0.23264499,61323.0,61322.0,0.001638]
[1728007740943,0.22164499,61323.0,61322.0,0.001638]
[1728007741588,0.21164499,61323.0,61322.0,0.001638]
[1728007741800,0.22264499,61323.0,61322.0,0.001638]
[1728007742027,0.23264499,61323.0,61322.0,0.001638]
[1728007742244,0.22164499,61323.0,61322.0,0.001638]
[1728007742509,0.21164499,61323.0,61322.0,0.001638]
[1728007743173,0.21964499,61323.0,61322.0,0.001638]
[1728007743616,0.22864499,61323.0,61322.0,0.001638]
[1728007744329,0.32864499,61323.0,61322.0,0.001638]
[1728007745229,0.294073,61323.0,61322.0,0.001638]
[1728007745449,0.300073,61323.0,61322.0,0.001638]
[1728007745661,0.314073,61323.0,61322.0,0.001638]
[1728007746126,0.300073,61323.0,61322.0,0.001638]
[1728007746337,0.31035965,61323.0,61322.0,0.001638]
[1728007746546,0.300073,61323.0,61322.0,0.001638]
[1728007746756,0.286073,61323.0,61322.0,0.001638]
[1728007747228,0.297073,61323.0,61322.0,0.001638]
[1728007747701,0.000819,61324.0,61322.0,0.001638]
[1728007747928,0.028,61323.0,61322.0,0.001638]
[1728007748165,0.17707,61323.0,61322.0,0.001638]
[1728007748370,0.16307,61323.0,61322.0,0.001638]
[1728007748575,0.19664046,61323.0,61322.0,0.001638]
[1728007748775,0.19764046,61323.0,61322.0,0.00335135]
[1728007749031,0.20164046,61323.0,61322.0,0.00335135]
[1728007749266,0.19764046,61323.0,61322.0,0.00335135]
[1728007749725,0.17607,61323.0,61322.0,0.00335135]
[1728007751523,0.17607,61323.0,61322.0,0.001638]
[1728007752625,0.16707,61323.0,61322.0,0.001638]
[1728007753044,0.19864199,61323.0,61322.0,0.001638]
[1728007753248,0.17307,61323.0,61322.0,0.001638]
[1728007753460,0.16707,61323.0,61322.0,0.001638]
[1728007753659,0.17607,61323.0,61322.0,0.001638]
[1728007754111,0.16307,61323.0,61322.0,0.001638]
[1728007754740,0.18207,61323.0,61322.0,0.001638]
[1728007754940,0.17407,61323.0,61322.0,0.001638]
[1728007755283,0.18407,61323.0,61322.0,0.001638]
[1728007757155,0.184889,61323.0,61322.0,0.001638]
[1728007757515,0.47056082,61323.0,61322.0,0.001638]
[1728007757736,0.56792518,61323.0,61322.0,0.001638]
[1728007757950,0.68092518,61323.0,61322.0,0.001638]
[1728007758394,0.69521183,61323.0,61322.0,0.001638]
[1728007758603,0.68121183,61323.0,61322.0,0.001638]
[1728007758828,0.67021183,61323.0,61322.0,0.001638]
[1728007759057,0.69821183,61323.0,61322.0,0.001638]
[1728007759508,0.68421183,61323.0,61322.0,0.001638]
[1728007759721,0.66992518,61323.0,61322.0,0.001638]
[1728007759959,0.68392518,61323.0,61322.0,0.001638]
[1728007760542,0.67021183,61323.0,61322.0,0.001638]
[1728007760724,0.70978729,61323.0,61322.0,0.001638]
[1728007760922,0.70950064,61323.0,61322.0,0.001638]
[1728007761136,0.72350064,61323.0,61322.0,0.001638]
[1728007761568,0.70978729,61323.0,61322.0,0.001638]
[1728007761798,0.72378729,61323.0,61322.0,0.001638]
[1728007762012,0.68392518,61323.0,61322.0,0.001638]
[1728007762210,0.69792518,61323.0,61322.0,0.001638]
[1728007762671,0.69821183,61323.0,61322.0,0.001638]
[1728007764265,0.163105,61310.0,61309.0,0.000819]
[1728007765225,0.18868163,61310.0,61309.0,0.000819]
[1728007765448,0.36568163,61310.0,61309.0,0.000819]
[1728007765699,0.37368163,61310.0,61309.0,0.000819]
[1728007765897,0.38068163,61310.0,61309.0,0.000819]
[1728007766113,0.36568163,61310.0,61309.0,0.000819]
[1728007766583,0.38068163,61310.0,61309.0,0.000819]
[1728007766795,0.48554624,61310.0,61309.0,0.000819]
[1728007767006,0.46025626,61310.0,61309.0,0.000819]
[1728007767420,0.45996961,61310.0,61309.0,0.000819]
[1728007768077,0.45196961,61310.0,61309.0,0.000819]
[1728007768314,0.46596961,61310.0,61309.0,0.000819]
[1728007768550,0.377105,61310.0,61309.0,0.000819]
[1728007768983,0.363105,61310.0,61309.0,0.000819]
[1728007769167,0.377105,61310.0,61309.0,0.000819]
[1728007769819,0.391105,61310.0,61309.0,0.000819]
[1728007770052,0.52480265,61310.0,61309.0,0.000819]
[1728007770307,0.55066963,61310.0,61309.0,0.000819]
[1728007770808,0.64906963,61310.0,61309.0,0.000819]
[1728007771029,0.76761434,61310.0,61309.0,0.000819]
[1728007771242,0.74203401,61310.0,61309.0,0.000819]
[1728007771462,0.6234893,61310.0,61309.0,0.000819]
[1728007771685,0.6094893,61310.0,61309.0,0.000819]
[1728007771900,0.5954893,61310.0,61309.0,0.000819]
[1728007772130,0.6234893,61310.0,61309.0,0.000819]
[1728007774162,0.5954893,61310.0,61309.0,0.000819]
[1728007774374,0.00028665,61302.0,61297.0,0.23950124]
[1728007774585,0.45360882,61298.0,61297.0,0.23950124]
[1728007775268,0.263148,61294.0,61293.0,0.000819]
[1728007777545,0.274148,61294.0,61293.0,0.000819]
[1728007777785,0.31173228,61294.0,61293.0,0.000819]
[1728007778261,0.28873228,61294.0,61293.0,0.000819]
[1728007778701,0.286148,61294.0,61293.0,0.000819]
[1728007778922,0.275148,61294.0,61293.0,0.000819]
[1728007779139,0.272148,61294.0,61293.0,0.000819]
[1728007779358,0.41629438,61294.0,61293.0,0.000819]
[1728007779585,0.272148,61294.0,61293.0,0.000819]
[1728007779814,0.46261982,61294.0,61293.0,0.000819]
[1728007780493,0.46361982,61294.0,61293.0,0.000819]
[1728007780721,0.47161982,61294.0,61293.0,0.000819]
[1728007780948,0.45361982,61294.0,61293.0,0.000819]
[1728007781169,0.46561982,61294.0,61293.0,0.000819]
[1728007781459,0.47661982,61294.0,61293.0,0.000819]
[1728007781694,0.45361982,61294.0,61293.0,0.000819]
[1728007781918,0.46461982,61294.0,61293.0,0.000819]
[1728007782137,0.50220588,61294.0,61293.0,0.000819]
[1728007783062,0.47661982,61294.0,61293.0,0.000819]
[1728007786629,0.45361982,61294.0,61293.0,0.000819]
[1728007787088,0.64217535,61294.0,61293.0,0.000819]
[1728007787535,0.62817535,61294.0,61293.0,0.000819]
[1728007787770,0.66517535,61294.0,61293.0,0.000819]
[1728007788315,0.47661982,61294.0,61293.0,0.000819]
[1728007788555,0.49061982,61294.0,61293.0,0.000819]
[1728007788777,0.50461982,61294.0,61293.0,0.000819]
[1728007789717,0.51620601,61294.0,61293.0,0.000819]
[1728007789961,0.47920601,61294.0,61293.0,0.000819]
[1728007790217,0.30273419,61294.0,61293.0,0.000819]
[1728007790454,0.31673419,61294.0,61293.0,0.000819]
[1728007790689,0.291148,61294.0,61293.0,0.000819]
[1728007790928,0.277148,61294.0,61293.0,0.000819]
[1728007791161,0.290148,61294.0,61293.0,0.000819]
[1728007791637,0.276148,61294.0,61293.0,0.000819]
[1728007791898,0.288148,61294.0,61293.0,0.000819]
[1728007793542,0.275148,61294.0,61293.0,0.000819]
[1728007793758,0.277148,61294.0,61293.0,0.000819]
[1728007793984,0.290148,61294.0,61293.0,0.000819]
[1728007796493,0.276148,61294.0,61293.0,0.000819]
[1728007796722,0.289148,61294.0,61293.0,0.000819]
[1728007796954,0.276148,61294.0,61293.0,0.000819]
[1728007797164,0.30173257,61294.0,61293.0,0.000819]
[1728007797403,0.31373257,61294.0,61293.0,0.000819]
[1728007798269,0.288148,61294.0,61293.0,0.000819]
[1728007800543,0.025,61294.0,61293.0,0.163969]
[1728007800929,0.025,61294.0,61293.0,0.243769]
[1728007801081,0.025,61294.0,61293.0,0.000819]
[1728007801082,0.176148,61294.0,61293.0,0.000819]
[1728007801306,0.163148,61294.0,61293.0,0.000819]
[1728007801523,0.20172981,61294.0,61293.0,0.000819]
[1728007801751,0.18872981,61294.0,61293.0,0.000819]
[1728007801975,0.19172981,61294.0,61293.0,0.000819]
[1728007802194,0.17945181,61294.0,61293.0,0.000819]
[1728007802637,0.19345181,61294.0,61293.0,0.000819]
[1728007802914,0.19345181,61294.0,61293.0,0.10063235]
[1728007803166,0.653385,61297.0,61296.0,0.341042]
[1728007803167,0.000819,61297.0,61296.0,0.341042]
[1728007803419,0.000819,61297.0,61296.0,0.53151382]
[1728007803652,0.000819,61297.0,61296.0,0.53322717]
[1728007804815,0.24468224,61317.0,61314.0,0.0778]
[1728007805263,0.489235,61321.0,61316.0,0.00171335]
[1728007805485,0.163084,61318.0,61316.0,0.00171335]
[1728007805707,0.163086,61317.0,61316.0,0.00171335]
[1728007806835,0.000819,61324.0,61321.0,0.163076]
[1728007807550,0.000819,61324.0,61321.0,0.16478935]
[1728007809186,0.027362,61322.0,61321.0,0.16478935]
[1728007809702,0.025362,61322.0,61321.0,0.24379188]
[1728007809927,0.025362,61322.0,61321.0,0.33675035]
[1728007810141,0.025362,61322.0,61321.0,0.33348935]
[1728007810831,0.026362,61322.0,61321.0,0.33348935]
[1728007811073,0.027362,61322.0,61321.0,0.33348935]
[1728007812167,0.026362,61322.0,61321.0,0.33348935]
[1728007812403,0.027362,61322.0,61321.0,0.33348935]
[1728007812849,0.026362,61322.0,61321.0,0.33348935]
[1728007813292,0.027362,61322.0,61321.0,0.33348935]
[1728007814002,0.026362,61322.0,61321.0,0.33348935]
[1728007814240,0.027362,61322.0,61321.0,0.33348935]
[1728007815330,0.028181,61322.0,61321.0,0.33348935]
[1728007815559,0.027181,61322.0,61321.0,0.33348935]
[1728007815778,0.028181,61322.0,61321.0,0.33348935]
[1728007816885,0.027181,61322.0,61321.0,0.33348935]
[1728007817106,0.028181,61322.0,61321.0,0.33348935]
[1728007817999,0.028181,61322.0,61321.0,0.24258935]
[1728007818908,0.027181,61322.0,61321.0,0.24258935]
[1728007819134,0.029181,61322.0,61321.0,0.24258935]
[1728007819810,0.028181,61322.0,61321.0,0.24258935]
[1728007820022,0.028181,61322.0,61321.0,0.16478935]
[1728007820023,0.026181,61322.0,61321.0,0.16478935]
[1728007820763,0.027181,61322.0,61321.0,0.16478935]
[1728007820981,0.026181,61322.0,61321.0,0.16478935]
[1728007821210,0.026181,61322.0,61321.0,0.00171335]
[1728007821442,0.190254,61322.0,61321.0,0.00171335]
[1728007822540,0.027181,61322.0,61321.0,0.00171335]
[1728007822796,0.027181,61322.0,61321.0,0.16805087]
[1728007822984,0.028181,61322.0,61321.0,0.24188935]
[1728007823207,0.029181,61322.0,61321.0,0.24188935]
[1728007823469,0.0537502,61322.0,61321.0,0.24188935]
[1728007823699,0.0537502,61322.0,61321.0,0.24515058]
[1728007823935,0.0547502,61322.0,61321.0,0.24188935]
[1728007824420,0.0527502,61322.0,61321.0,0.24188935]
[1728007827027,0.0527502,61322.0,61321.0,0.240176]
[1728007827513,0.027181,61322.0,61321.0,0.24188935]
[1728007830820,0.05274912,61322.0,61321.0,0.24188935]
[1728007831977,0.027181,61322.0,61321.0,0.24188935]
[1728007832224,0.027181,61322.0,61321.0,0.33308935]
[1728007832471,0.000819,61324.0,61322.0,0.43235817]
[1728007833932,0.001819,61323.0,61322.0,0.43235817]
[1728007834382,0.002819,61323.0,61322.0,0.43235817]
[1728007835088,0.002819,61323.0,61322.0,0.43435817]
[1728007835326,0.002819,61323.0,61322.0,0.72054488]
[1728007835557,0.24468224,61343.0,61342.0,0.16473335]
[1728007835805,0.24468224,61343.0,61342.0,0.35520517]
[1728007835806,0.27024522,61343.0,61342.0,0.35520517]
[1728007836032,0.02556298,61343.0,61342.0,0.35520517]
[1728007836960,0.40767624,61352.0,61347.0,0.163006]
[1728007837238,0.40767624,61352.0,61351.0,0.00171335]
[1728007837472,0.0773,61355.0,61348.0,0.00171335]
[1728007837700,0.0773,61355.0,61342.0,0.52250882]
[1728007837701,0.163,61350.0,61349.0,0.00171335]
[1728007837936,0.0773,61355.0,61350.0,0.00171335]
[1728007838173,0.162996,61351.0,61350.0,0.00171335]
[1728007838683,0.162999,61350.0,61349.0,0.00171335]
[1728007838930,0.166995,61352.0,61350.0,0.00171335]
[1728007839390,0.004,61352.0,61351.0,0.16470935]